bitfinex/quotes_BTCUSD_20240911
["timestamp","ask_amount","ask_price","bid_price","bid_amount"]
[1726040499667,0.002817,56711.0,56710.0,0.32885365]
[1726040499929,0.002817,56711.0,56710.0,0.61887785]
[1726040500174,0.002817,56711.0,56710.0,0.5400048]
[1726040501631,0.002817,56711.0,56710.0,0.64516886]
[1726040501869,0.002817,56711.0,56710.0,0.82110904]
[1726040504495,0.002817,56711.0,56710.0,0.82310904]
[1726040508333,0.002817,56711.0,56710.0,0.71794498]
[1726040509265,0.002817,56711.0,56710.0,0.60946438]
[1726040509497,0.002817,56711.0,56710.0,0.71794498]
[1726040511049,0.002817,56711.0,56710.0,0.84940006]
[1726040511493,0.002817,56711.0,56710.0,0.71794498]
[1726040511909,0.002817,56711.0,56710.0,0.87569108]
[1726040512163,0.000817,56720.0,56719.0,0.2513806]
[1726040512376,0.000817,56720.0,56719.0,0.30396634]
[1726040512606,0.000817,56720.0,56719.0,0.25490596]
[1726040513477,0.001817,56720.0,56719.0,0.25590596]
[1726040513896,0.002817,56720.0,56719.0,0.25690596]
[1726040514344,0.002817,56720.0,56719.0,0.30947447]
[1726040515926,0.002817,56720.0,56719.0,0.25690596]
[1726040516170,0.002817,56720.0,56719.0,0.11400596]
[1726040520754,0.002817,56720.0,56719.0,0.17780596]
[1726040521008,0.002817,56720.0,56719.0,0.30947447]
[1726040521241,0.002817,56720.0,56719.0,0.30945839]
[1726040521481,0.002817,56720.0,56719.0,0.25690596]
[1726040521953,0.002817,56720.0,56719.0,0.30945819]
[1726040522197,0.002817,56720.0,56719.0,0.25690596]
[1726040522695,0.002817,56720.0,56719.0,0.30945955]
[1726040525031,0.002817,56720.0,56719.0,0.25690596]
[1726040526832,0.002817,56720.0,56719.0,0.11400596]
[1726040527270,0.002817,56720.0,56719.0,0.002]
[1726040527482,0.002817,56720.0,56719.0,0.00552554]
[1726040528911,0.002817,56720.0,56719.0,0.12187896]
[1726040529122,0.002817,56720.0,56719.0,0.06932554]
[1726040529552,0.002817,56720.0,56719.0,0.12187021]
[1726040529773,0.002817,56720.0,56719.0,0.06932554]
[1726040531757,0.002817,56720.0,56719.0,0.12186709]
[1726040532392,0.002817,56720.0,56719.0,0.17780614]
[1726040533073,0.002817,56720.0,56719.0,0.002]
[1726040533521,0.065917,56720.0,56719.0,0.002]
[1726040534222,0.064917,56720.0,56719.0,0.001]
[1726040534436,0.063917,56720.0,56713.0,0.1084806]
[1726040534672,0.064917,56720.0,56719.0,0.011]
[1726040535128,0.064917,56720.0,56719.0,0.006]
[1726040535561,0.065917,56720.0,56719.0,0.012]
[1726040536001,0.064917,56720.0,56719.0,0.006]
[1726040536197,0.065917,56720.0,56719.0,0.013]
[1726040542173,0.41816118,56720.0,56719.0,0.013]
[1726040542440,1.26200169,56720.0,56719.0,0.013]
[1726040542701,0.90939269,56720.0,56719.0,0.013]
[1726040543184,0.90839269,56720.0,56719.0,0.006]
[1726040543668,0.90839269,56720.0,56711.0,0.001634]
[1726040543669,0.23851,56718.0,56711.0,0.001634]
[1726040543916,0.0622,56716.0,56711.0,0.001634]
[1726040545562,0.176318,56716.0,56711.0,0.001634]
[1726040545798,0.0622,56715.0,56711.0,0.001634]
[1726040546955,0.35226318,56715.0,56711.0,0.001634]
[1726040547177,0.0622,56714.0,56711.0,0.002634]
[1726040548629,0.0642,56714.0,56711.0,0.001634]
[1726040549047,0.241525,56714.0,56711.0,0.001634]
[1726040549542,0.242429,56712.0,56711.0,0.001634]
[1726040549776,0.77102818,56712.0,56711.0,0.001634]
[1726040550009,0.41836918,56712.0,56711.0,0.001634]
[1726040552281,0.41836918,56712.0,56711.0,0.002634]
[1726040552727,1.23216778,56712.0,56711.0,0.002634]
[1726040552948,1.7012126,56712.0,56711.0,0.001634]
[1726040553379,1.7032126,56712.0,56711.0,0.001634]
[1726040553597,1.7042126,56712.0,56711.0,0.001634]
[1726040553818,1.7342126,56712.0,56711.0,0.001634]
[1726040554036,1.7312126,56712.0,56711.0,0.001634]
[1726040554510,1.8248126,56712.0,56711.0,0.002634]
[1726040554954,1.8138126,56712.0,56711.0,0.001634]
[1726040555195,1.8218126,56712.0,56711.0,0.002634]
[1726040555418,1.83794339,56712.0,56711.0,0.001634]
[1726040555654,1.85094339,56712.0,56711.0,0.002634]
[1726040555875,1.86394339,56712.0,56711.0,0.003634]
[1726040556776,1.96394339,56712.0,56711.0,0.003634]
[1726040557049,1.96594339,56712.0,56711.0,0.003634]
[1726040558351,1.96394339,56712.0,56711.0,0.003634]
[1726040559889,1.90672824,56712.0,56711.0,0.003634]
[1726040560747,1.96393009,56712.0,56711.0,0.003634]
[1726040561221,1.90672824,56712.0,56711.0,0.003634]
[1726040564128,1.84755757,56712.0,56711.0,0.003634]
[1726040565524,1.49489857,56712.0,56711.0,0.003634]
[1726040566019,1.46489857,56712.0,56711.0,0.003634]
[1726040567185,1.49252813,56712.0,56711.0,0.003634]
[1726040567871,1.87518713,56712.0,56711.0,0.003634]
[1726040568345,2.05135668,56712.0,56711.0,0.003634]
[1726040569626,2.08093462,56712.0,56711.0,0.003634]
[1726040572373,2.08175162,56712.0,56711.0,0.003634]
[1726040572591,2.10938116,56712.0,56711.0,0.003634]
[1726040573037,2.11138116,56712.0,56711.0,0.003634]
[1726040573703,2.08375162,56712.0,56711.0,0.003634]
[1726040576889,2.11138123,56712.0,56711.0,0.003634]
[1726040577346,2.10938123,56712.0,56711.0,0.003634]
[1726040577589,1.91830063,56712.0,56711.0,0.003634]
[1726040577831,1.85061168,56712.0,56711.0,0.003634]
[1726040579401,1.82298207,56712.0,56711.0,0.003634]
[1726040583662,1.85061155,56712.0,56711.0,0.003634]
[1726040583898,1.85261155,56712.0,56711.0,0.003634]
[1726040584126,2.0267811,56712.0,56711.0,0.003634]
[1726040584824,2.49423902,56712.0,56711.0,0.003634]
[1726040585067,2.45779021,56712.0,56711.0,0.003634]
[1726040585312,1.739346,56709.0,56708.0,0.001632]
[1726040585590,2.34014383,56709.0,56708.0,0.001632]
[1726040585816,2.5985406,56709.0,56708.0,0.001632]
[1726040586044,2.83680042,56709.0,56708.0,0.001632]
[1726040586273,2.48412342,56709.0,56708.0,0.001632]
[1726040586499,2.83680042,56709.0,56708.0,0.001632]
[1726040586727,2.85080042,56709.0,56708.0,0.002632]
[1726040587652,2.49812342,56709.0,56708.0,0.002632]
[1726040588132,2.48412342,56709.0,56708.0,0.001632]
[1726040588352,2.85080042,56709.0,56708.0,0.001632]
[1726040588592,2.86480042,56709.0,56708.0,0.001632]
[1726040589064,2.49812342,56709.0,56708.0,0.001632]
[1726040589282,2.51212342,56709.0,56708.0,0.001632]
[1726040590206,2.6705457,56709.0,56708.0,0.001632]
[1726040590438,3.0232227,56709.0,56708.0,0.001632]
[1726040590739,2.6705457,56709.0,56708.0,0.001632]
[1726040591214,3.0232227,56709.0,56708.0,0.001632]
[1726040591917,2.6705457,56709.0,56708.0,0.001632]
[1726040592370,2.86480042,56709.0,56708.0,0.001632]
[1726040592621,2.6705457,56709.0,56708.0,0.001632]
[1726040592840,2.6981809,56709.0,56708.0,0.001632]
[1726040594416,2.53975862,56709.0,56708.0,0.001632]
[1726040594637,3.0508579,56709.0,56708.0,0.001632]
[1726040594869,1.7876396,56705.0,56704.0,0.0024739]
[1726040595090,0.973787,56703.0,56702.0,0.0037451]
[1726040595317,2.07766468,56703.0,56702.0,0.0037451]
[1726040596289,2.43745068,56703.0,56702.0,0.0037451]
[1726040596518,2.49469335,56703.0,56702.0,0.0037451]
[1726040596746,2.5223311,56703.0,56702.0,0.0037451]
[1726040596994,2.69359407,56703.0,56702.0,0.0037451]
[1726040597911,2.70759407,56703.0,56702.0,0.0037451]
[1726040599285,2.3116364,56703.0,56702.0,0.0037451]
[1726040599517,2.55211171,56703.0,56702.0,0.0037451]
[1726040600953,2.56844985,56703.0,56702.0,0.0037451]
[1726040601888,2.43645514,56703.0,56702.0,0.0037451]
[1726040602122,2.56844985,56703.0,56702.0,0.0037451]
[1726040602356,2.56843244,56703.0,56702.0,0.0037451]
[1726040602806,2.56842392,56703.0,56702.0,0.0037451]
[1726040603708,2.43645514,56703.0,56702.0,0.0037451]
[1726040608102,2.61141059,56703.0,56702.0,0.0037451]
[1726040608584,2.78917014,56703.0,56702.0,0.0037451]
[1726040608809,0.3768656,56694.0,56688.0,0.0607]
[1726040609037,1.49472832,56694.0,56688.0,0.0607]
[1726040609258,1.84549932,56694.0,56688.0,0.0607]
[1726040609930,1.84549029,56694.0,56688.0,0.0607]
[1726040610161,1.85949029,56694.0,56688.0,0.0607]
[1726040610381,2.03565984,56694.0,56688.0,0.0607]
[1726040611116,2.04965984,56694.0,56688.0,0.0607]
[1726040611515,2.03565984,56694.0,56688.0,0.0607]
[1726040611760,2.04965984,56694.0,56688.0,0.0607]
[1726040612205,2.05165984,56694.0,56688.0,0.0607]
[1726040612649,2.06796778,56694.0,56688.0,0.0607]
[1726040612870,2.41873878,56694.0,56688.0,0.0607]
[1726040613345,2.42073878,56694.0,56688.0,0.0607]
[1726040613575,2.4634213,56694.0,56688.0,0.0607]
[1726040615785,2.4614213,56694.0,56688.0,0.0607]
[1726040616019,2.4614213,56694.0,56686.0,0.082]
[1726040616020,2.02948629,56694.0,56693.0,0.0648079]
[1726040616290,1.23307468,56694.0,56693.0,0.1468079]
[1726040616510,1.34155528,56694.0,56693.0,0.1468079]
[1726040617671,1.44155528,56694.0,56693.0,0.1468079]
[1726040617887,1.61772483,56694.0,56693.0,0.1468079]
[1726040619432,1.63420858,56694.0,56693.0,0.1468079]
[1726040620799,1.63420858,56694.0,56693.0,0.0041079]
[1726040620800,2.18481959,56694.0,56693.0,0.0041079]
[1726040621250,2.05287958,56694.0,56693.0,0.0041079]
[1726040622423,2.09560381,56694.0,56693.0,0.0041079]
[1726040622641,2.44837481,56694.0,56693.0,0.0041079]
[1726040624191,2.43437481,56694.0,56693.0,0.0041079]
[1726040624400,2.44837481,56694.0,56693.0,0.0041079]
[1726040624610,2.43437481,56694.0,56693.0,0.0041079]
[1726040625061,2.44837481,56694.0,56693.0,0.0041079]
[1726040625518,2.37047481,56694.0,56693.0,0.0041079]
[1726040625752,2.32775058,56694.0,56693.0,0.0041079]
[1726040626790,2.34175058,56694.0,56693.0,0.0041079]
[1726040627598,2.38447481,56694.0,56693.0,0.0041079]
[1726040628609,2.54293098,56694.0,56693.0,0.0041079]
[1726040629873,2.54307335,56694.0,56693.0,0.0041079]
[1726040630417,2.38447481,56694.0,56693.0,0.0041079]
[1726040630617,2.34175058,56694.0,56693.0,0.0041079]
[1726040631203,2.41246758,56694.0,56693.0,0.0041079]
[1726040631429,2.45519181,56694.0,56693.0,0.0041079]
[1726040631665,2.45519181,56694.0,56693.0,0.0677079]
[1726040631885,2.38447481,56694.0,56693.0,0.0677079]
[1726040632107,2.34175058,56694.0,56693.0,0.0677079]
[1726040632556,2.38447481,56694.0,56693.0,0.0677079]
[1726040632783,2.27399421,56694.0,56693.0,0.0041079]
[1726040632995,2.38247481,56694.0,56693.0,0.0041079]
[1726040633211,2.33975058,56694.0,56693.0,0.0041079]
[1726040636274,2.34175058,56694.0,56693.0,0.0041079]
[1726040638335,2.34481922,56694.0,56693.0,0.0041079]
[1726040639052,2.34175058,56694.0,56693.0,0.0041079]
[1726040640469,2.34175058,56694.0,56682.0,0.0041099]
[1726040640470,0.266419,56683.0,56682.0,0.0041099]
[1726040640695,0.78741252,56683.0,56682.0,0.0041099]
[1726040640925,1.84592952,56683.0,56682.0,0.0677099]
[1726040641605,1.76656428,56683.0,56682.0,0.0677099]
[1726040641867,1.95182725,56683.0,56682.0,0.0677099]
[1726040642106,1.93782725,56683.0,56682.0,0.0677099]
[1726040642329,1.95182725,56683.0,56682.0,0.0677099]
[1726040643955,1.97947041,56683.0,56682.0,0.0677099]
[1726040644174,1.99547041,56683.0,56682.0,0.0677099]
[1726040644662,2.00925344,56683.0,56682.0,0.0677099]
[1726040647244,2.00925344,56683.0,56682.0,0.1505099]
[1726040647474,1.76223477,56683.0,56682.0,0.1505099]
[1726040648400,1.76223477,56683.0,56682.0,0.1505099]
[1726040648605,1.5909718,56683.0,56682.0,0.1505099]
[1726040648827,1.59098134,56683.0,56682.0,0.1505099]
[1726040651072,1.56333818,56683.0,56682.0,0.1505099]
[1726040652393,0.46697755,56683.0,56682.0,0.1505099]
[1726040652612,0.96979996,56683.0,56682.0,0.1505099]
[1726040653070,0.94333348,56683.0,56682.0,0.1505099]
[1726040653781,1.11950303,56683.0,56682.0,0.1505099]
[1726040654445,1.06657523,56683.0,56682.0,0.1505099]
[1726040654681,1.11951596,56683.0,56682.0,0.1505099]
[1726040654898,1.06657523,56683.0,56682.0,0.1505099]
[1726040655354,1.09421821,56683.0,56682.0,0.1505099]
[1726040655807,0.91804866,56683.0,56682.0,0.1505099]
[1726040656047,0.56520966,56683.0,56682.0,0.1505099]
[1726040656256,0.91804866,56683.0,56682.0,0.1505099]
[1726040656693,0.97098947,56683.0,56682.0,0.1505099]
[1726040657591,0.97098943,56683.0,56682.0,0.1505099]
[1726040658265,0.61815043,56683.0,56682.0,0.1505099]
[1726040658486,0.97098943,56683.0,56682.0,0.1505099]
[1726040658703,0.7153803,56683.0,56682.0,0.1505099]
[1726040658922,0.71538054,56683.0,56682.0,0.1505099]
[1726040661186,0.41408869,56683.0,56682.0,0.1505099]
[1726040661407,0.36114768,56683.0,56682.0,0.1505099]
[1726040661626,0.41408869,56683.0,56682.0,0.1505099]
[1726040661858,0.44173117,56683.0,56682.0,0.1505099]
[1726040662518,0.44173672,56683.0,56682.0,0.1505099]
[1726040662914,0.53756668,56683.0,56682.0,0.1505099]
[1726040663360,0.64209419,56683.0,56682.0,0.1505099]
[1726040663570,0.53756668,56683.0,56682.0,0.1505099]
[1726040663823,0.41409423,56683.0,56682.0,0.1505099]
[1726040664503,0.36114768,56683.0,56682.0,0.1505099]
[1726040665187,0.53756668,56683.0,56682.0,0.1505099]
[1726040665405,0.61698651,56683.0,56682.0,0.1505099]
[1726040665626,0.75928195,56683.0,56682.0,0.1505099]
[1726040667935,1.11212095,56683.0,56682.0,0.1505099]
[1726040670286,1.46501269,56683.0,56682.0,0.1505099]
[1726040670498,1.13866454,56683.0,56682.0,0.1505099]
[1726040670711,0.9963691,56683.0,56682.0,0.1505099]
[1726040675144,1.0263691,56683.0,56682.0,0.0041099]
[1726040675363,1.33324468,56683.0,56682.0,0.0041099]
[1726040675584,1.84503908,56683.0,56682.0,0.0041099]
[1726040675805,1.86225323,56683.0,56682.0,0.0041099]
[1726040676259,1.87589754,56683.0,56682.0,0.0041099]
[1726040676713,1.88989754,56683.0,56682.0,0.0041099]
[1726040676941,1.87589754,56683.0,56682.0,0.0041099]
[1726040677377,1.88989754,56683.0,56682.0,0.0041099]
[1726040678280,1.87589754,56683.0,56682.0,0.0041099]
[1726040678507,1.88989754,56683.0,56682.0,0.0041099]
[1726040678946,1.89189754,56683.0,56682.0,0.0041099]
[1726040679221,1.88989754,56683.0,56682.0,0.0041099]
[1726040680147,2.30823654,56683.0,56682.0,0.0041099]
[1726040680380,2.31023654,56683.0,56682.0,0.0041099]
[1726040680602,1.99953427,56683.0,56682.0,0.0041099]
[1726040680818,2.28259223,56683.0,56682.0,0.0041099]
[1726040681038,2.26859223,56683.0,56682.0,0.0041099]
[1726040681277,2.25459223,56683.0,56682.0,0.0041099]
[1726040681495,2.26859223,56683.0,56682.0,0.0041099]
[1726040682610,2.28259223,56683.0,56682.0,0.0041099]
[1726040684589,2.31023776,56683.0,56682.0,0.0041099]
[1726040684809,2.35237449,56683.0,56682.0,0.0041099]
[1726040685038,2.35237449,56683.0,56681.0,0.001634]
[1726040685039,1.326957,56682.0,56681.0,0.001634]
[1726040685288,0.4380096,56680.0,56679.0,0.0021111]
[1726040685516,0.621305,56678.0,56677.0,0.001634]
[1726040685739,1.0807656,56671.0,56667.0,0.0632]
[1726040685986,1.76682728,56671.0,56667.0,0.0632]
[1726040686707,1.79447675,56671.0,56667.0,0.0632]
[1726040687378,1.80847675,56671.0,56667.0,0.0632]
[1726040687563,1.94068948,56671.0,56667.0,0.0632]
[1726040687803,2.11685903,56671.0,56667.0,0.0632]
[1726040688280,2.10441338,56671.0,56667.0,0.0632]
[1726040688730,1.9846463,56671.0,56667.0,0.0632]
[1726040689162,1.9986463,56671.0,56667.0,0.0632]
[1726040689389,1.9986463,56671.0,56651.0,0.001634]
[1726040689635,0.92051868,56671.0,56670.0,0.1505079]
[1726040689855,1.27343268,56671.0,56670.0,0.1505079]
[1726040690308,1.25943268,56671.0,56670.0,0.1505079]
[1726040690521,1.27343268,56671.0,56670.0,0.1505079]
[1726040690810,1.43560223,56671.0,56670.0,0.1505079]
[1726040691456,1.42160223,56671.0,56670.0,0.1505079]
[1726040691676,1.43560223,56671.0,56670.0,0.1505079]
[1726040691907,1.45180777,56671.0,56670.0,0.1505079]
[1726040692127,1.43780777,56671.0,56670.0,0.1505079]
[1726040692352,1.45180777,56671.0,56670.0,0.1505079]
[1726040693284,1.47945692,56671.0,56670.0,0.1505079]
[1726040693484,1.46580777,56671.0,56670.0,0.1505079]
[1726040697332,1.49345697,56671.0,56670.0,0.1505079]
[1726040699970,1.46580777,56671.0,56670.0,0.1505079]
[1726040700211,1.81872177,56671.0,56670.0,0.1505079]
[1726040701346,1.84872177,56671.0,56670.0,0.1505079]
[1726040701580,1.93155771,56671.0,56670.0,0.1505079]
[1726040701801,1.87872177,56671.0,56670.0,0.1505079]
[1726040702926,1.81872177,56671.0,56670.0,0.1505079]
[1726040703143,1.64255222,56671.0,56670.0,0.1505079]
[1726040703618,0.26114768,56671.0,56670.0,0.1505079]
[1726040703833,0.028,56671.0,56670.0,0.1505079]
[1726040704298,0.05564827,56671.0,56670.0,0.1505079]
[1726040704507,0.04164827,56671.0,56670.0,0.1505079]
[1726040704719,0.02764827,56671.0,56670.0,0.1505079]
[1726040704933,0.03164827,56671.0,56670.0,0.1505079]
[1726040705144,0.03464827,56671.0,56670.0,0.1505079]
[1726040708026,0.44344448,56671.0,56670.0,0.1505079]
[1726040708252,0.50068121,56671.0,56670.0,0.1505079]
[1726040708502,0.44428218,56671.0,56670.0,0.1505079]
[1726040710290,0.26782518,56671.0,56670.0,0.1505079]
[1726040710710,0.44428218,56671.0,56670.0,0.1505079]
[1726040712764,0.26782518,56671.0,56670.0,0.1505079]
[1726040712996,0.06423673,56671.0,56670.0,0.1505079]
[1726040713469,0.007,56671.0,56670.0,0.1505079]
[1726040716149,0.034647,56671.0,56670.0,0.1505079]
[1726040718611,0.73995818,56671.0,56670.0,0.1505079]
[1726040718845,1.85057877,56671.0,56670.0,0.0041079]
[1726040719264,1.90348204,56671.0,56670.0,0.0041079]
[1726040719484,1.55056804,56671.0,56670.0,0.0041079]
[1726040719694,1.49766477,56671.0,56670.0,0.0041079]
[1726040719929,1.46701777,56671.0,56670.0,0.0041079]
[1726040720391,1.47601777,56671.0,56670.0,0.0041079]
[1726040720612,1.46301777,56671.0,56670.0,0.0041079]
[1726040720836,1.47701777,56671.0,56670.0,0.0041079]
[1726040721053,1.48801777,56671.0,56670.0,0.0041079]
[1726040721325,1.47401777,56671.0,56670.0,0.0041079]
[1726040721541,1.48501777,56671.0,56670.0,0.0041079]
[1726040722198,1.50103164,56671.0,56670.0,0.0041079]
[1726040722831,1.58393491,56671.0,56670.0,0.0041079]
[1726040723276,1.51753471,56671.0,56670.0,0.0041079]
[1726040723967,0.98348589,56671.0,56670.0,0.0666079]
[1726040724180,0.92821376,56671.0,56670.0,0.1441079]
[1726040724897,1.31112776,56671.0,56670.0,0.1441079]
[1726040725780,1.31194476,56671.0,56670.0,0.1441079]
[1726040726939,1.28194476,56671.0,56670.0,0.1441079]
[1726040727153,1.4528239,56671.0,56670.0,0.1441079]
[1726040728036,1.4828239,56671.0,56670.0,0.1441079]
[1726040728289,1.31194476,56671.0,56670.0,0.1441079]
[1726040728741,1.28429594,56671.0,56670.0,0.1441079]
[1726040731499,0.90138194,56671.0,56670.0,0.1441079]
[1726040732181,0.93138194,56671.0,56670.0,0.1441079]
[1726040732396,0.95903017,56671.0,56670.0,0.1441079]
[1726040732638,1.31194417,56671.0,56670.0,0.1441079]
[1726040733362,1.36486578,56671.0,56670.0,0.1441079]
[1726040734283,1.31194417,56671.0,56670.0,0.1441079]
[1726040734495,1.36488098,56671.0,56670.0,0.1441079]
[1726040736969,1.31194417,56671.0,56670.0,0.1441079]
[1726040737399,1.39134939,56671.0,56670.0,0.1441079]
[1726040738046,1.56751894,56671.0,56670.0,0.0041079]
[1726040738692,1.53987071,56671.0,56670.0,0.0041079]
[1726040739376,2.01790194,56671.0,56670.0,0.0041079]
[1726040740952,1.84144494,56671.0,56670.0,0.0041079]
[1726040741176,1.36371839,56671.0,56670.0,0.0041079]
[1726040741618,1.71663239,56671.0,56670.0,0.0041079]
[1726040742046,1.74663239,56671.0,56670.0,0.0041079]
[1726040742258,1.77663239,56671.0,56670.0,0.0041079]
[1726040743810,1.80310654,56671.0,56670.0,0.0041079]
[1726040744238,2.04237609,56671.0,56670.0,0.0041079]
[1726040744510,1.93647949,56671.0,56670.0,0.0041079]
[1726040744731,2.06686546,56671.0,56670.0,0.0041079]
[1726040744971,1.93447949,56671.0,56670.0,0.0041079]
[1726040746133,2.28939349,56671.0,56670.0,0.0041079]
[1726040746381,2.33387271,56671.0,56670.0,0.0041079]
[1726040746650,2.31187271,56671.0,56670.0,0.0041079]
[1726040746874,2.32587271,56671.0,56670.0,0.0041079]
[1726040747352,1.97295871,56671.0,56670.0,0.0041079]
[1726040747584,1.91447949,56671.0,56670.0,0.0041079]
[1726040747825,1.94047949,56671.0,56670.0,0.0041079]
[1726040748072,1.98495871,56671.0,56670.0,0.0041079]
[1726040748331,1.98695871,56671.0,56670.0,0.0041079]
[1726040750135,1.98495871,56671.0,56670.0,0.0041079]
[1726040751444,1.80878916,56671.0,56670.0,0.0041079]
[1726040751664,1.76430994,56671.0,56670.0,0.0041079]
[1726040754223,1.70320994,56671.0,56670.0,0.0041079]
[1726040756761,1.83548439,56671.0,56670.0,0.0041079]
[1726040756977,1.70320994,56671.0,56670.0,0.0041079]
[1726040757187,1.80902682,56671.0,56670.0,0.0041079]
[1726040757822,1.80902682,56671.0,56670.0,0.0658079]
[1726040758042,1.91772963,56671.0,56670.0,0.0658079]
[1726040758281,1.88772963,56671.0,56670.0,0.0658079]
[1726040758515,1.78191275,56671.0,56670.0,0.0658079]
[1726040758944,1.75191275,56671.0,56670.0,0.0658079]
[1726040759151,1.78191275,56671.0,56670.0,0.0658079]
[1726040759853,1.78191275,56671.0,56670.0,0.0041079]
[1726040760516,1.94420241,56671.0,56670.0,0.0041079]
[1726040761409,1.53128841,56671.0,56670.0,0.0041079]
[1726040761631,1.0432305,56671.0,56670.0,0.1418079]
[1726040761849,1.29029594,56671.0,56670.0,0.1418079]
[1726040762061,1.36968151,56671.0,56670.0,0.1418079]
[1726040762495,1.29029594,56671.0,56670.0,0.1418079]
[1726040762712,1.27629594,56671.0,56670.0,0.1418079]
[1726040762919,1.38499875,56671.0,56670.0,0.1418079]
[1726040763161,1.39899875,56671.0,56670.0,0.1418079]
[1726040763382,1.51967127,56671.0,56670.0,0.0041079]
[1726040763875,1.38499875,56671.0,56670.0,0.0041079]
[1726040764089,1.39899875,56671.0,56670.0,0.0041079]
[1726040764538,1.53128841,56671.0,56670.0,0.0041079]
[1726040766995,1.53128841,56671.0,56670.0,0.0658079]
[1726040767224,1.53128841,56671.0,56670.0,0.1418079]
[1726040767438,1.55894081,56671.0,56670.0,0.1418079]
[1726040767722,0.46906351,56671.0,56670.0,0.1418079]
[1726040767927,0.56610647,56671.0,56670.0,0.1418079]
[1726040768146,0.53845407,56671.0,56670.0,0.1418079]
[1726040768364,0.52445407,56671.0,56670.0,0.1418079]
[1726040768572,0.87736807,56671.0,56670.0,0.1418079]
[1726040769228,0.53845407,56671.0,56670.0,0.1418079]
[1726040769650,0.87736807,56671.0,56670.0,0.1418079]
[1726040769856,0.88936807,56671.0,56670.0,0.1418079]
[1726040770068,0.52245407,56671.0,56670.0,0.1418079]
[1726040770318,0.53345407,56671.0,56670.0,0.1418079]
[1726040772152,0.35699707,56671.0,56670.0,0.1418079]
[1726040773329,0.53345407,56671.0,56670.0,0.1418079]
[1726040775508,0.56110371,56671.0,56670.0,0.1418079]
[1726040775679,0.38464671,56671.0,56670.0,0.1418079]
[1726040778587,0.10870653,56671.0,56670.0,0.1418079]
[1726040778802,0.10870653,56671.0,56670.0,0.32295955]
[1726040778803,0.023817,56671.0,56670.0,0.32295955]
[1726040779032,0.023817,56671.0,56670.0,0.32648796]
[1726040779489,0.023817,56671.0,56670.0,0.14533631]
[1726040779705,0.011817,56671.0,56670.0,0.14533631]
[1726040780348,0.000817,56671.0,56670.0,0.14533631]
[1726040780560,0.001817,56671.0,56670.0,0.14533631]
[1726040780797,0.001817,56671.0,56670.0,0.14733631]
[1726040780996,0.001817,56671.0,56670.0,0.14533631]
[1726040781207,0.001817,56671.0,56670.0,0.14733631]
[1726040781442,0.002817,56671.0,56670.0,0.14733631]
[1726040781870,0.001817,56671.0,56670.0,0.14733631]
[1726040782331,0.03046254,56671.0,56670.0,0.15033631]
[1726040783269,0.03046254,56671.0,56670.0,0.33148796]
[1726040783925,0.03046254,56671.0,56670.0,0.15033631]
[1726040784154,0.03046254,56671.0,56670.0,0.33148796]
[1726040784580,0.03046254,56671.0,56670.0,0.33348796]
[1726040785884,0.002817,56671.0,56670.0,0.33348796]
[1726040786993,0.002817,56671.0,56670.0,0.33148796]
[1726040787604,0.03046023,56671.0,56670.0,0.33348796]
[1726040788679,0.002817,56671.0,56670.0,0.33148796]
[1726040792232,0.002817,56671.0,56670.0,0.32795955]
[1726040792650,0.002817,56671.0,56670.0,0.33148759]
[1726040792851,0.03046033,56671.0,56670.0,0.33348759]
[1726040793674,0.03046033,56671.0,56670.0,0.32995955]
[1726040796784,0.03046033,56671.0,56670.0,0.50942791]
[1726040796994,0.03046033,56671.0,56670.0,0.60383829]
[1726040797207,0.000817,56677.0,56676.0,0.002]
[1726040797430,0.000817,56677.0,56676.0,0.33037934]
[1726040798283,0.000817,56677.0,56676.0,0.50631952]
[1726040798487,0.001817,56677.0,56676.0,0.50831952]
[1726040799351,0.002817,56677.0,56676.0,0.51931952]
[1726040799777,0.001817,56677.0,56676.0,0.51731952]
[1726040799988,0.002817,56677.0,56676.0,0.52731952]
[1726040800396,0.001817,56677.0,56676.0,0.51731952]
[1726040800602,0.0013026,56678.0,56677.0,0.032]
[1726040800809,0.0013026,56678.0,56677.0,0.35516729]
[1726040801436,6e-07,56678.0,56677.0,0.35516729]
[1726040802070,0.0010006,56678.0,56677.0,0.36716729]
[1726040802284,6e-07,56678.0,56677.0,0.54831894]
[1726040802911,0.0010006,56678.0,56677.0,0.56131894]
[1726040803404,0.02863807,56678.0,56677.0,0.56131894]
[1726040805346,0.02483807,56678.0,56677.0,0.56131894]
[1726040805596,0.02389392,56678.0,56677.0,0.56131894]
[1726040805843,0.000818,56693.0,56685.0,0.1408]
[1726040806136,0.52782518,56692.0,56687.0,0.1408]
[1726040806373,0.000818,56693.0,56691.0,0.18115165]
[1726040806632,0.000818,56693.0,56692.0,0.06532705]
[1726040808605,0.000818,56693.0,56692.0,0.06732705]
[1726040809515,0.000818,56693.0,56692.0,0.06832705]
[1726040809777,0.066818,56693.0,56692.0,0.003]
[1726040809995,0.000818,56693.0,56692.0,0.003]
[1726040816167,0.000818,56693.0,56692.0,0.00652706]
[1726040817035,0.000818,56693.0,56692.0,0.003]
[1726040822299,0.000818,56693.0,56692.0,0.00652706]
[1726040825620,0.000818,56693.0,56692.0,0.06832706]
[1726040828633,0.000818,56693.0,56692.0,0.14732706]
[1726040829497,0.000818,56693.0,56692.0,0.14632706]
[1726040829703,0.000818,56693.0,56692.0,0.14432706]
[1726040829907,0.001818,56693.0,56692.0,0.15632706]
[1726040830111,0.002818,56693.0,56692.0,0.17032706]
[1726040838584,0.002818,56693.0,56692.0,0.026]
[1726040840661,0.067118,56693.0,56692.0,0.026]
[1726040841465,0.066118,56693.0,56692.0,0.014]
[1726040841877,0.065118,56693.0,56692.0,0.004]
[1726040842257,0.065118,56693.0,56692.0,0.008]
[1726040842734,0.065118,56693.0,56692.0,0.0733]
[1726040842735,0.000818,56693.0,56692.0,0.0733]
[1726040842956,0.000818,56693.0,56692.0,0.2592653]
[1726040843190,0.000818,56693.0,56692.0,0.31135506]
[1726040843408,0.000818,56693.0,56692.0,0.62059766]
[1726040843615,0.000818,56693.0,56692.0,0.54475324]
[1726040843616,0.02845153,56693.0,56692.0,0.54475324]
[1726040843838,0.02845153,56693.0,56692.0,0.54875324]
[1726040844031,0.02845153,56693.0,56692.0,0.64687914]
[1726040844252,0.000818,56693.0,56692.0,0.64687914]
[1726040844483,0.001818,56693.0,56692.0,0.65687914]
[1726040844697,0.000818,56693.0,56692.0,0.65087914]
[1726040844907,0.000818,56693.0,56692.0,0.64687914]
[1726040845105,0.001818,56693.0,56692.0,0.65787914]
[1726040845311,0.001818,56693.0,56692.0,0.66787914]
[1726040845312,0.002818,56693.0,56692.0,0.66787914]
[1726040845828,0.002818,56693.0,56692.0,0.66435233]